fUSD/lending_fUSD_20250614
["ID","MTS","AMOUNT","RATE_DAILY","PERIOD"]
[365801790,1749922231919,-300.0,0.00016236,2]
[365801791,1749922231928,-600.0,0.00016237,2]
[365801792,1749922231938,-300.0,0.00016237,2]
[365801793,1749922231948,-1957.856,0.00016239,2]
[365801794,1749922231958,-207.4,0.00016239,2]
[365801795,1749922231967,-300.0,0.00016248,2]
[365801796,1749922231977,-1595.19,0.00016249,2]
[365801797,1749922231987,-1623.66169706,0.00016294,2]
[365801798,1749922232027,-481.75595181,0.00016294,2]
[365801799,1749922232037,-363.3417574,0.000163,2]
[365801801,1749922232048,-636.6582426,0.000163,2]
[365801802,1749922232058,-168.0,0.00016398,2]
[365801804,1749922232070,-1000.0,0.000164,2]
[365801806,1749922232080,-550.0,0.00016499,2]
[365801808,1749922232090,-3605.55,0.000165,2]
[365801810,1749922232102,-1000.0,0.000165,2]
[365801812,1749922232112,-302.82,0.000165,2]
[365801815,1749922232121,-385.24,0.000165,2]
[365801816,1749922232131,-625.13484309,0.000165,2]
[365801823,1749922237652,-1736.24515691,0.000165,2]
[365801824,1749922237670,-500.0,0.00016548,2]
[365801825,1749922237680,-3605.55,0.000166,2]
[365801826,1749922237690,-1000.0,0.000166,2]
[365801827,1749922237699,-201.0,0.00016678,4]
[365801828,1749922237709,-151.0,0.0001669,2]
[365801829,1749922237718,-152.25590016,0.0001669,2]
[365801830,1749922237728,-1316.16347923,0.0001669,2]
[365801831,1749922237737,-1000.0,0.00016699,2]
[365801832,1749922237747,-709.4,0.000167,2]
[365801833,1749922237756,-3605.55,0.000167,2]
[365801834,1749922237768,-3605.55,0.000167,2]
[365801835,1749922237777,-3605.55,0.000167,2]
[365801836,1749922237786,-1000.0,0.000167,2]
[365801837,1749922237795,-833.63237626,0.00016798,2]
[365801838,1749922237806,-1000.0,0.000168,2]
[365801839,1749922237815,-1000.0,0.00016816,2]
[365801840,1749922237825,-324.40475698,0.00016849,2]
[365801841,1749922237834,-168.0,0.0001685,2]
[365801842,1749922237844,-152.0,0.00016856,4]
[365801843,1749922237853,-886.34914822,0.00016862,2]
[365801844,1749922237863,-1288.378,0.00016863,2]
[365801845,1749922237872,-2000.0,0.00016864,2]
[365801846,1749922237882,-804.28541859,0.0001687,2]
[365801847,1749922237891,-150.0,0.00016899,2]
[365801848,1749922237901,-150.0,0.00016899,2]
[365801849,1749922237910,-500.0,0.00016899,2]
[365801850,1749922237920,-192.14979095,0.00016899,2]
[365801851,1749922237930,-151.96943552,0.00016899,2]
[365801852,1749922237940,-150.0,0.00016899,2]
[365801853,1749922237950,-150.0,0.00016899,2]
[365801854,1749922237960,-283.61426712,0.000169,2]
[365801855,1749922237969,-1000.0,0.000169,2]
[365801856,1749922237979,-207.4253094,0.000169,2]
[365801857,1749922237989,-435.90001203,0.000169,2]
[365801858,1749922237998,-221.58159898,0.000169,2]
[365801859,1749922238007,-153.64068744,0.000169,2]
[365801860,1749922238017,-1000.0,0.00016921,2]
[365801861,1749922238026,-151.0,0.00016922,2]
[365801862,1749922238035,-151.0,0.00016922,2]
[365801863,1749922238044,-296.358567,0.00016922,2]
[365801864,1749922238053,-296.358567,0.00016922,2]
[365801865,1749922238062,-151.397542,0.00016922,2]
[365801866,1749922238072,-204.941313,0.00016922,2]
[365801867,1749922238082,-204.941313,0.00016922,2]
[365801868,1749922238090,-233.50662,0.00016922,2]
[365801869,1749922238099,-233.50662,0.00016922,2]
[365801870,1749922238109,-500.0,0.00016922,2]
[365801872,1749922238118,-200.0,0.00016926,2]
[365801873,1749922238128,-500.0,0.00016926,2]
[365801875,1749922238138,-258.19605247,0.00016926,2]
[365801877,1749922238147,-150.0,0.00016926,2]
[365801879,1749922238157,-500.0,0.00016949,2]
[365801880,1749922238166,-550.0,0.00016954,2]
[365801882,1749922238176,-501.84441112,0.00016973,2]
[365801885,1749922238186,-500.0,0.00016973,2]
[365801886,1749922238196,-500.0,0.00016973,2]
[365801888,1749922238205,-158.74703324,0.00016973,2]
[365801890,1749922238215,-500.0,0.00016973,2]
[365801892,1749922238224,-500.0,0.00016973,2]
[365801894,1749922238233,-346.64936122,0.00016973,2]
[365801896,1749922238243,-500.0,0.00016977,2]
[365801898,1749922238253,-350.0,0.00016983,2]
[365801900,1749922238262,-150.92,0.0001699,2]
[365801902,1749922238271,-150.92,0.0001699,2]
[365801904,1749922238281,-150.92,0.0001699,2]
[365801906,1749922238291,-150.92,0.0001699,2]
[365801908,1749922238300,-7381.8282662,0.00016992,2]
[365801910,1749922238309,-2461.914,0.00016992,2]
[365801912,1749922238319,-4699.1351057,0.00016995,2]
[365801914,1749922238329,-29958.39989026,0.00016995,2]
[365801989,1749922239084,666.0,0.00015931,2]
[365802061,1749922239784,-868.22992952,0.00016734,2]
[365802063,1749922239794,-4089.0,0.00016861,2]
[365802065,1749922239805,-2519.24427014,0.00016995,2]
[365802067,1749922239815,-1959.0108214,0.00016995,2]
[365802069,1749922239825,-29940.911,0.00016995,2]
[365802071,1749922239835,-151.0,0.00016996,2]
[365802073,1749922239844,-151.0,0.00016996,2]
[365802074,1749922239854,-151.0,0.00016996,2]
[365802076,1749922239864,-151.0,0.00016996,2]
[365802078,1749922239874,-151.0,0.00016996,2]
[365802080,1749922239883,-296.358567,0.00016996,2]
[365802082,1749922239893,-296.358567,0.00016996,2]
[365802084,1749922239902,-296.358567,0.00016996,2]
[365802086,1749922239911,-296.358567,0.00016996,2]
[365802088,1749922239921,-151.0,0.00016996,2]
[365802090,1749922239931,-151.0,0.00016996,2]
[365802092,1749922239941,-204.941313,0.00016996,2]
[365802094,1749922239951,-204.941313,0.00016996,2]
[365802096,1749922239961,-204.941313,0.00016996,2]
[365802098,1749922239971,-204.941313,0.00016996,2]
[365802100,1749922239980,-151.0,0.00016996,2]
[365802102,1749922239990,-151.0,0.00016996,2]
[365802104,1749922239999,-233.50662,0.00016996,2]
[365802106,1749922240009,-233.50662,0.00016996,2]
[365802108,1749922240019,-233.50662,0.00016996,2]
[365802110,1749922240028,-233.50662,0.00016996,2]
[365802112,1749922240038,-214.056791,0.00016996,2]
[365802114,1749922240047,-214.056791,0.00016996,2]
[365802116,1749922240056,-151.0,0.00016996,2]
[365802118,1749922240067,-1000.0,0.00016998,2]
[365802120,1749922240076,-151.0,0.00016999,2]
[365802122,1749922240086,-151.0,0.00016999,2]
[365802124,1749922240096,-157.021108,0.00016999,2]
[365802126,1749922240106,-1000.0,0.00016999,2]
[365802128,1749922240115,-1000.0,0.00016999,2]
[365802130,1749922240125,-1000.0,0.00016999,2]
[365802132,1749922240134,-296.358567,0.00016999,2]
[365802133,1749922240144,-296.358567,0.00016999,2]
[365802135,1749922240153,-296.358567,0.00016999,2]
[365802137,1749922240163,-296.358567,0.00016999,2]
[365802139,1749922240172,-151.0,0.00016999,2]
[365802141,1749922240182,-151.0,0.00016999,2]
[365802143,1749922240192,-204.941313,0.00016999,2]
[365802145,1749922240201,-204.941313,0.00016999,2]
[365802147,1749922240211,-204.941313,0.00016999,2]
[365802185,1749922240578,-204.941313,0.00016999,2]
[365802188,1749922240588,-151.0,0.00016999,2]
[365802189,1749922240598,-151.0,0.00016999,2]
[365802191,1749922240607,-233.50662,0.00016999,2]
[365802193,1749922240616,-233.50662,0.00016999,2]
[365802195,1749922240626,-233.50662,0.00016999,2]
[365802197,1749922240635,-233.50662,0.00016999,2]
[365802199,1749922240644,-214.056791,0.00016999,2]
[365802201,1749922240654,-214.056791,0.00016999,2]
[365802203,1749922240663,-151.0,0.00016999,2]
[365802205,1749922240672,-328.85313476,0.00016999,2]
[365802207,1749922240682,-170.96,0.00016999,2]
[365802209,1749922240691,-294.62071764,0.00016999,2]
[365802212,1749922240713,-705.37928236,0.00016999,2]
[365802214,1749922240722,-1000.0,0.00016999,2]
[365802216,1749922240731,-150.0,0.00016999,2]
[365802218,1749922240741,-150.0,0.00016999,2]
[365802220,1749922240751,-150.0,0.00016999,2]
[365802222,1749922240764,-150.0,0.00016999,2]
[365802224,1749922240774,-500.0,0.00016999,2]
[365802226,1749922240784,-150.0,0.00016999,2]
[365802228,1749922240793,-51.72230243,0.00016999,2]
[365802231,1749922240811,-98.27769757,0.00016999,2]
[365802233,1749922240821,-150.0,0.00016999,2]
[365802235,1749922240831,-150.0,0.00016999,2]
[365802237,1749922240842,-150.0,0.00016999,2]
[365802239,1749922240851,-150.0,0.00016999,2]
[365802241,1749922240861,-211.92372185,0.00016999,2]
[365802243,1749922240871,-150.0,0.00016999,2]
[365802245,1749922240880,-151.86779167,0.00016999,2]
[365802247,1749922240889,-150.0,0.00016999,2]
[365802249,1749922240899,-150.0,0.00016999,2]
[365802251,1749922240908,-171.24908528,0.00016999,2]
[365802253,1749922240917,-150.0,0.00016999,2]
[365802255,1749922240926,-500.0,0.00016999,2]
[365802257,1749922240936,-150.0,0.00016999,2]
[365802259,1749922240945,-289.39346988,0.00016999,2]
[365802261,1749922240955,-150.0,0.00016999,2]
[365802263,1749922240964,-150.0,0.00016999,2]
[365802265,1749922240974,-500.0,0.00016999,2]
[365802267,1749922240983,-150.0,0.00016999,2]
[365802269,1749922240993,-300.0,0.00016999,2]
[365802271,1749922241002,-500.0,0.00016999,2]
[365802273,1749922241011,-500.0,0.00016999,2]
[365802275,1749922241021,-500.0,0.00016999,2]
[365802277,1749922241031,-496.93720318,0.00016999,2]
[365802279,1749922241040,-529.88922262,0.00016999,2]
[365802281,1749922241049,-374.85420125,0.00016999,2]
[365802283,1749922241058,-500.0,0.00016999,2]
[365802285,1749922241068,-500.0,0.00016999,2]
[365802287,1749922241077,-500.0,0.00016999,2]
[365802289,1749922241086,-500.0,0.00016999,2]
[365802291,1749922241095,-177.62283772,0.00016999,2]
[365802293,1749922241104,-347.50017045,0.00016999,2]
[365802295,1749922241114,-30.63105244,0.00016999,2]
[365802297,1749922241126,-233.88918017,0.00016999,2]
[365802299,1749922241135,-500.0,0.00016999,2]
[365802301,1749922241144,-500.0,0.00016999,2]
[365802303,1749922241154,-500.0,0.00016999,2]
[365802305,1749922241163,-500.0,0.00016999,2]
[365802307,1749922241173,-500.0,0.00016999,2]
[365802309,1749922241182,-514.39503844,0.00016999,2]
[365802311,1749922241191,-171.04235163,0.00016999,2]
[365802479,1749922242876,-9.74697069,0.00016999,2]
[365802481,1749922242885,-500.0,0.00016999,2]
[365802483,1749922242895,-500.0,0.00016999,2]
[365802485,1749922242904,-397.49920394,0.00016999,2]
[365802487,1749922242914,-2.03198213,0.00016999,2]
[365802489,1749922242923,-500.0,0.00016999,2]
[365802525,1749922243259,-150.0,0.00016999,2]
[365802527,1749922243269,-213.65454882,0.00016999,2]
[365802529,1749922243278,-500.0,0.00016999,2]
[365802531,1749922243288,-500.0,0.00016999,2]
[365802533,1749922243297,-500.0,0.00016999,2]
[365802535,1749922243306,-500.0,0.00016999,2]
[365802537,1749922243315,-500.0,0.00016999,2]
[365802539,1749922243326,-500.0,0.00016999,2]
[365802541,1749922243335,-500.0,0.00016999,2]
[365802543,1749922243344,-460.66255934,0.00016999,2]
[365802545,1749922243354,-150.0,0.00016999,2]
[365802547,1749922243363,-500.0,0.00016999,2]
[365802549,1749922243371,-500.0,0.00016999,2]
[365802551,1749922243381,-500.0,0.00016999,2]
[365802553,1749922243390,-500.0,0.00016999,2]
[365802555,1749922243399,-500.0,0.00016999,2]
[365802557,1749922243408,-377.22548767,0.00016999,2]
[365802559,1749922243417,-500.0,0.00016999,2]
[365802561,1749922243427,-592.17051989,0.00016999,2]
[365802563,1749922243436,-500.0,0.00016999,2]
[365802565,1749922243446,-500.0,0.00016999,2]
[365802567,1749922243454,-548.50490216,0.00016999,2]
[365802669,1749922245676,-90.2578674,0.00016999,2]
[365802670,1749922245686,-500.0,0.00016999,2]
[365802671,1749922245696,-150.36972246,0.00016999,2]
[365802672,1749922245706,-2002.0,0.00016999,2]
[365802673,1749922245716,-1276.0,0.00016999,2]
[365802674,1749922245725,-261.85503514,0.00016999,2]
[365802675,1749922245737,-296.14496486,0.00016999,2]
[365802676,1749922245746,-927.0,0.00016999,2]
[365802677,1749922245757,-590.0,0.00016999,2]
[365802678,1749922245769,-115.20301216,0.00016999,2]
[365802679,1749922245893,-1557.79698784,0.00016999,2]
[365802680,1749922245903,-1160.0,0.00016999,2]
[365802681,1749922245913,-3331.0,0.00016999,2]
[365802682,1749922245922,-1078.935,0.00016999,2]
[365802683,1749922245932,-7110.0,0.00016999,2]
[365802684,1749922245943,-528.0,0.00017,2]
[365802686,1749922245952,-7965.51227731,0.00017,2]
[365802688,1749922245961,-693.15261405,0.00017,2]
[365802689,1749922335173,1501.33,0.00014117,2]
[365802690,1749922361577,202.0,0.00015093,2]
[365802691,1749922462506,420.96,0.00013699,2]
[365802693,1749922628358,168.98,0.00015963,2]
[365802694,1749922799417,23900.0,0.00015899,2]
[365802695,1749922830538,222.0,0.00015788,2]
[365802696,1749922832744,222.0,0.00014402,2]
[365802697,1749922838066,222.0,0.00015702,2]
[365802698,1749922897578,500.0,0.00015865,2]
[365802699,1749922931702,201.0,0.00015206,2]
[365802700,1749922931982,201.0,0.0001574,2]
[365802701,1749922991404,162.99,0.00015794,2]
[365802702,1749923021523,202.0,0.00015206,2]
[365802703,1749923045506,250.0,0.00015788,2]
[365802717,1749923291887,201.0,0.00015273,2]
[365802718,1749923292167,201.0,0.00015818,2]
[365802719,1749923328397,1551.02,0.00013878,2]
[365802720,1749923358900,202.0,0.00015273,2]
[365802721,1749923364043,723.99,0.00015773,2]
[365802729,1749923431836,-2895.43,0.00016021,2]
[365802730,1749923431846,-300.0,0.00016025,2]
[365802731,1749923431855,-300.0,0.00016029,2]
[365802732,1749923431865,-600.0,0.00016037,4]
[365802733,1749923431874,-1200.0,0.00016135,2]
[365802734,1749923431883,-1957.856,0.00016136,2]
[365802735,1749923431893,-207.4,0.00016136,2]
[365802736,1749923431902,-600.0,0.0001614,2]
[365802737,1749923431911,-1551.02,0.00016141,2]
[365802738,1749923431922,-222.0,0.00016146,2]
[365802739,1749923431931,-300.0,0.00016147,2]
[365802740,1749923431942,-1576.99745256,0.00016149,2]
[365802741,1749923431952,-500.0,0.00016165,2]
[365802742,1749923431962,-500.0,0.00016165,2]
[365802743,1749923431971,-500.0,0.00016165,2]
[365802744,1749923431981,-326.72353108,0.00016191,2]
[365802745,1749923431990,-1000.0,0.00016197,2]
[365802746,1749923432000,-201.0,0.00016364,3]
[365802747,1749923432009,-222.0,0.00016381,2]
[365802748,1749923432019,-151.0,0.0001659,2]
[365802749,1749923432028,-500.0,0.0001659,2]
[365802750,1749923432038,-500.0,0.0001659,2]
[365802751,1749923432047,-359.23790398,0.0001659,2]
[365802752,1749923432057,-1000.0,0.0001659,2]
[365802753,1749923432067,-151.0,0.0001659,2]
[365802754,1749923432077,-195.44589601,0.0001659,2]
[365802755,1749923432087,-384.0,0.00016599,2]
[365802756,1749923432096,-3314.44254469,0.000166,2]
[365802757,1749923432108,-3068.8008591,0.000166,2]
[365802758,1749923432120,-1135.8514,0.000166,2]
[365802759,1749923432133,-1682.33057766,0.000166,2]
[365802760,1749923432145,-41150.69557519,0.000166,2]
[365802761,1749923432154,-150.0,0.000166,2]
[365802762,1749923432164,-150.0,0.00016652,2]
[365802763,1749923432175,-150.0,0.00016652,2]
[365802764,1749923432184,-222.0,0.00016662,2]
[365802765,1749923432193,-150.0,0.000167,2]
[365802766,1749923432203,-168.0,0.00016729,2]
[365802767,1749923432214,-1000.0,0.00016755,2]
[365802768,1749923432225,-833.63237626,0.00016781,2]
[365802769,1749923432234,-150.0,0.000168,2]
[365802770,1749923432244,-1000.0,0.00016882,2]
[365802771,1749923432253,-625.0,0.00016896,2]
[365802772,1749923432262,-3889.93200103,0.00016896,2]
[365802774,1749923432272,-3889.93200095,0.00016896,2]
[365802776,1749923432281,-3889.93200095,0.00016897,2]
[365802777,1749923432290,-263.39593771,0.00016897,2]
[365802779,1749923432300,-3889.93200095,0.00016897,2]
[365802781,1749923432309,-3889.93200095,0.00016898,2]
[365802783,1749923432318,-3889.93200095,0.00016898,2]
[365802785,1749923432327,-3505.54201516,0.00016899,2]
[365802788,1749923432338,-384.38998579,0.00016899,2]
[365802790,1749923432347,-625.0,0.00016899,2]
[365802792,1749923432357,-32.92879035,0.00016899,2]
[365802795,1749923432368,-997.77420965,0.00016899,2]
[365802797,1749923432377,-2337.90507278,0.00016899,2]
[365802799,1749923432387,-193.88389909,0.00016899,2]
[365802801,1749923432396,-392.3100108,0.00016899,2]
[365802802,1749923432405,-3248.03537338,0.00016899,2]
[365802803,1749923432416,-612.78543716,0.00016899,2]
[365802804,1749923434060,378.0,0.00015295,2]
[365802814,1749923437825,-378.0,0.00016151,2]
[365802815,1749923437838,-29.11119041,0.00016899,2]
[365802816,1749923437847,-2235.65397344,0.00016899,2]
[365802817,1749923437933,-102.25109929,0.00016899,2]
[365802818,1749923437943,-2279.4623021,0.00016899,2]
[365802819,1749923437988,-58.44277063,0.00016899,2]
[365802820,1749923437998,-1564.36243457,0.00016899,2]
[365802821,1749923438009,-773.54263816,0.00016899,2]
[365802822,1749923438019,-2337.90507273,0.00016899,2]
[365802823,1749923438028,-3889.93200095,0.000169,2]
[365802824,1749923438038,-2337.90507273,0.000169,2]
[365802825,1749923438047,-1954.71521543,0.000169,2]
[365802826,1749923438062,-383.1898573,0.000169,2]
[365802827,1749923438072,-2337.90507273,0.000169,2]
[365802828,1749923438082,-2110.09372513,0.000169,2]
[365802829,1749923438093,-227.8113476,0.000169,2]
[365802830,1749923438104,-2265.87,0.000169,2]
[365802831,1749923438113,-150.0,0.000169,2]
[365802832,1749923438123,-243.09794322,0.000169,2]
[365802833,1749923438135,-165.94024752,0.000169,2]
[365802834,1749923438145,-3889.93200095,0.000169,2]
[365802835,1749923438154,-2337.90507273,0.000169,2]
[365802836,1749923438163,-198.42754643,0.000169,2]
[365802837,1749923438173,-190.5436645,0.000169,2]
[365802838,1749923438183,-816.46720438,0.000169,2]
[365802839,1749923438192,-201.0,0.00016909,4]
[365802840,1749923438201,-500.0,0.00016973,2]
[365802841,1749923438212,-500.0,0.00016973,2]
[365802842,1749923438222,-500.0,0.00016973,2]
[365802843,1749923438231,-500.0,0.00016973,2]
[365802844,1749923438240,-868.22992952,0.00016984,2]
[365802845,1749923438250,-1597.5714536,0.00016996,2]
[365802846,1749923438586,-4496.0944695,0.00016996,2]
[365802847,1749923438609,-25186.182,0.00016996,2]
[365802848,1749923438619,-305.7471834,0.00016996,2]
[365802849,1749923438628,-25875.1689999,0.00016996,2]
[365802850,1749923438637,-3982.75613865,0.00016998,2]
[365802851,1749923438646,-74189.47620211,0.00016999,2]
[365802852,1749923438658,-419.66806944,0.00016999,2]
[365802853,1749923438669,-499.11804958,0.00016999,2]
[365802855,1749923439996,-15726.0,0.00016999,2]
[365802856,1749923440261,-1124.14116049,0.00016999,2]
[365802857,1749923440273,-10483.3,0.00016999,2]
[365802858,1749923440284,-242298.96800646,0.00016999,2]
[365802866,1749923443112,-649.18989135,0.00016999,2]
[365802867,1749923443168,-77044.10384991,0.00016999,2]
[365802868,1749923443181,-20150.28042804,0.00016999,2]
[365802869,1749923443193,-645.43150644,0.00016999,2]
[365802871,1749923444125,429.28,0.00013699,2]
[365802872,1749923445975,-2509.89566902,0.00016999,2]
[365802873,1749923446181,-56733.54831868,0.00016999,2]
[365802874,1749923446191,-1000.0,0.00016999,2]
[365802875,1749923446200,-1000.0,0.00016999,2]
[365802876,1749923446211,-1000.0,0.00016999,2]
[365802877,1749923446220,-1000.0,0.00016999,2]
[365802878,1749923446229,-1000.0,0.00016999,2]
[365802879,1749923446238,-163.84,0.00016999,2]
[365802880,1749923446247,-1000.0,0.00016999,2]
[365802882,1749923446256,-500.0,0.00016999,2]
[365802883,1749923446265,-150.0,0.00016999,2]
[365802884,1749923446275,-150.0,0.00016999,2]
[365802885,1749923446286,-150.0,0.00016999,2]
[365802886,1749923446295,-500.0,0.00016999,2]
[365802887,1749923446304,-150.0,0.00016999,2]
[365802888,1749923446313,-200.0,0.00016999,2]
[365802889,1749923446323,-150.0,0.00016999,2]
[365802890,1749923446333,-150.0,0.00016999,2]
[365802891,1749923446342,-500.0,0.00016999,2]
[365802892,1749923446352,-150.0,0.00016999,2]
[365802893,1749923446361,-500.0,0.00016999,2]
[365802894,1749923446370,-150.0,0.00016999,2]
[365802895,1749923446379,-500.0,0.00016999,2]
[365802896,1749923446388,-150.0,0.00016999,2]
[365802897,1749923446397,-150.0,0.00016999,2]
[365802898,1749923446406,-500.0,0.00016999,2]
[365802899,1749923446415,-220.94716228,0.00016999,2]
[365802900,1749923446425,-155.50346512,0.00016999,2]
[365802901,1749923446434,-500.0,0.00016999,2]
[365802902,1749923446443,-500.0,0.00016999,2]
[365802903,1749923446452,-233.88918017,0.00016999,2]
[365802904,1749923446462,-514.39503844,0.00016999,2]
[365802905,1749923446471,-271.37138248,0.00016999,2]
[365802906,1749923446479,-500.0,0.00016999,2]
[365802907,1749923446489,-592.55384001,0.00016999,2]
[365802908,1749923446498,-500.0,0.00016999,2]
[365802909,1749923446507,-500.0,0.00016999,2]
[365802910,1749923446516,-500.0,0.00016999,2]
[365802911,1749923446525,-500.0,0.00016999,2]
[365802912,1749923446534,-500.0,0.00016999,2]
[365802913,1749923446543,-34143.04476415,0.00016999,2]
[365802914,1749923446552,-3335.73,0.00016999,2]
[365802915,1749923446562,-637.0,0.00016999,2]
[365802916,1749923446571,-802.0,0.00016999,2]
[365802917,1749923446580,-155.0,0.00016999,2]
[365802918,1749923446589,-4089.0,0.00016999,2]
[365802919,1749923446601,-7023.0,0.00016999,2]
[365802920,1749923446610,-854.0,0.00016999,2]
[365802921,1749923446620,-884.0,0.00016999,2]
[365802922,1749923446629,-600.0,0.00017,2]
[365802923,1749923446638,-122847.15689532,0.00017,2]
[365802924,1749923446653,-53569.35300059,0.00017,2]
[365802926,1749923591869,379.0,0.00015273,2]
[365802927,1749923748488,157.33,0.00015921,2]
[365802928,1749923939366,173.86162,0.00015964,2]
[365802929,1749923942043,23900.0,0.00015844,2]
[365802930,1749924012390,201.0,0.00015455,2]
[365802931,1749924012681,201.0,0.00015973,2]
[365802932,1749924030553,162.99,0.00015859,2]
[365802933,1749924047851,500.0,0.00015851,3]
[365802934,1749924051863,250.0,0.0001584,2]
[365802935,1749924124068,788.0,0.00016,2]
[365802936,1749924195211,473.55285369,0.00025,120]
[365802937,1749924230304,1000.0,0.00016,16]
[365802938,1749924242045,1000.0,0.00025,120]
[365802939,1749924242747,1000.0,0.00025,120]
[365802940,1749924295980,816.80250811,0.00016,9]
[365802941,1749924371948,201.0,0.00015491,2]
[365802942,1749924392313,1508.21,0.00013868,2]
[365802943,1749924401448,202.0,0.00015491,2]
[365802961,1749924520824,710.85,0.00015768,2]
[365802964,1749924556643,666.0,0.0001575,2]
[365802975,1749924632007,-201.0,0.00016021,2]
[365802976,1749924632017,-300.0,0.00016027,2]
[365802977,1749924632027,-250.0,0.00016033,2]
[365802978,1749924632038,-300.0,0.00016046,2]
[365802979,1749924632047,-300.0,0.00016058,2]
[365802980,1749924632057,-1508.21,0.00016132,2]
[365802981,1749924632066,-500.0,0.00016165,2]
[365802982,1749924632075,-324.85706853,0.00016165,2]
[365802983,1749924632085,-328.16769277,0.00016165,2]
[365802984,1749924632098,-171.83230723,0.00016165,2]
[365802985,1749924632108,-178.47564551,0.00016207,2]
[365802986,1749924632125,-821.52435449,0.00016207,2]
[365802987,1749924632134,-1200.0,0.00016432,2]
[365802988,1749924632143,-300.0,0.00016432,2]
[365802989,1749924632153,-550.0,0.00016433,2]
[365802990,1749924632163,-207.4,0.00016434,2]
[365802991,1749924632172,-1957.856,0.00016434,2]
[365802992,1749924632181,-55.14301744,0.00016434,2]
[365802993,1749924632193,-95.85698256,0.00016434,2]
[365802994,1749924632202,-151.0,0.00016434,2]
[365802995,1749924632211,-477.73104169,0.00016434,2]
[365803346,1749924638118,-281.78311804,0.00016434,2]
[365803347,1749924638172,-24.55713283,0.00016434,2]
[365803348,1749924638182,-500.0,0.00016434,2]
[365803349,1749924638192,-500.0,0.00016434,2]
[365803350,1749924638202,-500.0,0.00016434,2]
[365803351,1749924638212,-500.0,0.00016434,2]
[365803352,1749924638221,-1000.0,0.00016434,2]
[365803353,1749924638231,-500.0,0.00016434,2]
[365803354,1749924638241,-500.0,0.00016434,2]
[365803355,1749924638251,-1000.0,0.00016434,2]
[365803356,1749924638260,-310.41814798,0.00016434,2]
[365803357,1749924638270,-500.0,0.00016434,2]
[365803358,1749924638280,-1000.0,0.00016434,2]
[365803359,1749924638290,-500.0,0.00016434,2]
[365803360,1749924638300,-1000.0,0.00016434,2]
[365803361,1749924638309,-500.0,0.00016434,2]
[365803362,1749924638319,-336.2986427,0.00016434,2]
[365803363,1749924638329,-500.0,0.00016434,2]
[365803364,1749924638339,-500.0,0.00016434,2]
[365803365,1749924638348,-500.0,0.00016434,2]
[365803366,1749924638358,-500.0,0.00016434,2]
[365803367,1749924638367,-597.60974713,0.00016434,2]
[365803368,1749924638377,-151.0,0.00016434,2]
[365803369,1749924638389,-300.0,0.00016443,2]
[365803371,1749924638399,-151.0,0.00016457,2]
[365803373,1749924638408,-151.0,0.00016457,2]
[365803375,1749924638419,-151.0,0.00016458,2]
[365803377,1749924638428,-151.0,0.00016458,2]
[365803379,1749924638438,-2030.296672,0.00016489,2]
[365803380,1749924638448,-2105.41764886,0.00016544,2]
[365803382,1749924638458,-201.0,0.0001655,3]
[365803384,1749924638468,-1957.856,0.00016599,2]
[365803386,1749924638477,-163.42,0.000166,2]